fUST/lending_fUST_20251030
["ID","MTS","AMOUNT","RATE_DAILY","PERIOD"]
[392667261,1761799845031,-501.96314415,0.00027671,4]
[392667262,1761799845040,-501.61684033,0.00027671,4]
[392667263,1761799845049,-501.41908695,0.00027671,4]
[392667264,1761799845059,-502.23075058,0.00027671,4]
[392667265,1761799845068,-501.82864639,0.00027671,4]
[392667266,1761799845077,-500.0,0.00027671,4]
[392667267,1761799845086,-500.0,0.00027671,4]
[392667268,1761799845096,-500.0,0.00027671,2]
[392667269,1761799845105,-500.0,0.00027671,4]
[392667270,1761799845115,-500.0,0.00027671,4]
[392667272,1761799845124,-592.07,0.0002784,4]
[392667274,1761799845135,-500.0,0.00027841,3]
[392667275,1761799845144,-500.0,0.00027841,4]
[392667276,1761799845154,-500.0,0.00027841,4]
[392667277,1761799845164,-509.32853007,0.00027841,4]
[392667278,1761799845173,-500.0,0.00027841,4]
[392667279,1761799845183,-500.0,0.00027841,4]
[392667280,1761799845193,-500.0,0.00027841,4]
[392667281,1761799845203,-457.01344544,0.00027841,4]
[392667282,1761799845213,-500.0,0.00027841,4]
[392667284,1761799845224,-500.0,0.00027841,4]
[392667285,1761799845233,-500.0,0.00027841,4]
[392667286,1761799845243,-500.0,0.00027841,4]
[392667287,1761799845253,-500.0,0.00027841,4]
[392667288,1761799845263,-406.61,0.00027889,18]
[392667289,1761799845272,-500.0,0.00027945,4]
[392667290,1761799845281,-500.0,0.00027945,4]
[392667291,1761799845291,-500.0,0.00027945,2]
[392667292,1761799845301,-500.0,0.00027945,4]
[392667293,1761799845311,-500.0,0.00027945,4]
[392667294,1761799845320,-347.24692614,0.00028,10]
[392667295,1761799845330,-500.0,0.00028115,3]
[392667296,1761799845339,-500.0,0.00028115,4]
[392667297,1761799845349,-500.0,0.00028115,4]
[392667298,1761799845360,-251.88314838,0.00028115,4]
[392667299,1761799845374,-248.11685162,0.00028115,4]
[392667300,1761799845387,-500.0,0.00028115,4]
[392667301,1761799845396,-500.0,0.00028115,4]
[392667302,1761799845405,-499.43826501,0.00028115,4]
[392667303,1761799845419,-500.0,0.00028115,4]
[392667304,1761799845431,-500.0,0.00028115,4]
[392667305,1761799845441,-500.0,0.00028115,4]
[392667306,1761799845451,-502.15049276,0.00028115,4]
[392667307,1761799845465,-590.97336893,0.00028199,2]
[392667308,1761799845475,-500.0,0.00028219,4]
[392667309,1761799845484,-500.0,0.00028219,4]
[392667310,1761799845494,-500.0,0.00028219,2]
[392667311,1761799845504,-228.56,0.00028219,4]
[392667312,1761799845514,-500.0,0.00028219,4]
[392667313,1761799845524,-171.253283,0.00028219,2]
[392667314,1761799845533,-500.0,0.00028259,5]
[392667315,1761799845543,-500.0,0.00028259,5]
[392667316,1761799845552,-500.0,0.00028389,4]
[392667317,1761799845561,-500.0,0.00028389,4]
[392667318,1761799845570,-500.0,0.00028389,4]
[392667319,1761799845579,-500.0,0.00028389,4]
[392667320,1761799845588,-500.0,0.00028389,4]
[392667321,1761799845598,-500.0,0.00028389,4]
[392667322,1761799845607,-501.85522988,0.00028389,4]
[392667323,1761799845617,-500.0,0.00028389,4]
[392667324,1761799845765,-500.0,0.00028493,4]
[392667325,1761799845776,-500.0,0.00028493,4]
[392667326,1761799845785,-500.0,0.00028493,2]
[392667327,1761799845795,-500.0,0.00028493,4]
[392667328,1761799845804,-500.0,0.00028663,4]
[392667329,1761799845814,-245.7,0.00028663,4]
[392667330,1761799845823,-500.0,0.00028663,4]
[392667331,1761799845832,-500.0,0.00028663,4]
[392667332,1761799845841,-439.76098835,0.00028663,4]
[392667333,1761799845850,-500.0,0.00028663,4]
[392667334,1761799845859,-390.01736551,0.00028663,4]
[392667335,1761799845869,-500.0,0.00028767,4]
[392667336,1761799845878,-500.0,0.00028767,4]
[392667338,1761799845888,-500.0,0.00028767,2]
[392667340,1761799845897,-1000.0,0.00028807,5]
[392667342,1761799845907,-1000.0,0.00028807,5]
[392667343,1761799845916,-1001.54100377,0.00028873,2]
[392667344,1761799845925,-500.0,0.00028937,4]
[392667345,1761799845934,-500.0,0.00028937,4]
[392667347,1761799845943,-500.0,0.00028937,4]
[392667348,1761799845952,-500.0,0.00028937,4]
[392667349,1761799845961,-420.0,0.00029029,2]
[392667350,1761799845970,-1240.0,0.0002903,2]
[392667351,1761799845979,-500.0,0.00029041,4]
[392667352,1761799845988,-500.0,0.00029041,4]
[392667353,1761799845997,-500.0,0.00029041,2]
[392667354,1761799846008,-1200.0,0.00029158,2]
[392667355,1761799846017,-482.14,0.00029202,2]
[392667356,1761799846026,-183.74,0.00029202,2]
[392667357,1761799846035,-183.74,0.00029202,2]
[392667358,1761799846044,-500.0,0.00029211,4]
[392667360,1761799846053,-500.0,0.00029211,4]
[392667361,1761799846063,-500.0,0.00029211,4]
[392667362,1761799846073,-500.0,0.00029211,4]
[392667363,1761799846083,-229.1400234,0.00029315,4]
[392667364,1761799846092,-171.6872455,0.00029315,4]
[392667365,1761799846101,-500.0,0.00029315,2]
[392667366,1761799846110,-168.0,0.00029323,2]
[392667367,1761799846119,-1500.0,0.00029355,5]
[392667368,1761799846129,-1500.0,0.00029355,5]
[392667369,1761799846138,-419.90213513,0.00029412,2]
[392667370,1761799846147,-168.0,0.00029456,2]
[392667371,1761799846157,-168.0,0.00029465,2]
[392667373,1761799846167,-500.0,0.00029485,4]
[392667374,1761799846176,-500.0,0.00029485,4]
[392667375,1761799846185,-500.0,0.00029485,4]
[392667376,1761799846195,-500.0,0.00029485,4]
[392667377,1761799846205,-168.0,0.00029563,2]
[392667378,1761799846214,-310.19070598,0.00029589,2]
[392667379,1761799846225,-168.0,0.00029707,2]
[392667380,1761799846234,-500.0,0.00029759,4]
[392667381,1761799846244,-500.0,0.00029759,4]
[392667382,1761799846253,-500.0,0.00029759,4]
[392667383,1761799846270,-500.0,0.00029759,4]
[392667384,1761799846284,-168.0,0.00029777,2]
[392667385,1761799846294,-1000.0,0.00029902,5]
[392667386,1761799846304,-168.0,0.00029918,7]
[392667387,1761799846314,-500.0,0.00030033,4]
[392667388,1761799846323,-500.0,0.00030033,4]
[392667389,1761799846332,-500.0,0.00030033,4]
[392667390,1761799846342,-500.0,0.00030033,4]
[392667391,1761799846351,-322.89587049,0.00030307,4]
[392667392,1761799846361,-500.0,0.00030307,4]
[392667393,1761799846371,-500.0,0.00030307,4]
[392667394,1761799846382,-500.0,0.00030307,4]
[392667395,1761799846391,-168.0,0.00030328,2]
[392667396,1761799846401,-500.0,0.00030581,4]
[392667397,1761799846411,-500.0,0.00030581,4]
[392667398,1761799846423,-500.0,0.00030581,4]
[392667399,1761799846432,-168.0,0.00030613,2]
[392667400,1761799846441,-168.0,0.0003071,2]
[392667401,1761799846452,-168.0,0.00030728,2]
[392667402,1761799846462,-500.0,0.00030855,4]
[392667403,1761799846471,-500.0,0.00030855,4]
[392667404,1761799846481,-405.0194212,0.00030855,4]
[392667405,1761799846490,-168.0,0.00030863,2]
[392667406,1761799846500,-590.97336893,0.00030904,2]
[392667407,1761799846509,-168.0,0.00030905,2]
[392667408,1761799846518,-4221.0,0.00030914,2]
[392667409,1761799846528,-251.8542786,0.00030954,2]
[392667410,1761799846538,-168.0,0.00031079,7]
[392667411,1761799846547,-500.0,0.00031129,4]
[392667412,1761799846557,-500.0,0.00031129,4]
[392667413,1761799846566,-168.0,0.00031273,2]
[392667414,1761799846575,-587.0,0.00031389,2]
[392667415,1761799846586,-500.0,0.00031403,4]
[392667416,1761799846596,-500.0,0.00031403,4]
[392667417,1761799846606,-168.0,0.0003141,2]
[392667418,1761799846615,-475.47741772,0.00031412,2]
[392667419,1761799846625,-168.0,0.00031458,2]
[392667420,1761799846634,-168.0,0.00031555,2]
[392667421,1761799846644,-168.0,0.00031563,2]
[392667422,1761799846654,-536.95179159,0.00031677,4]
[392667423,1761799846663,-500.0,0.00031677,4]
[392667424,1761799846672,-168.0,0.0003195,2]
[392667425,1761799846682,-500.0,0.00031951,4]
[392667426,1761799846691,-168.0,0.00032043,2]
[392667427,1761799846700,-168.0,0.00032112,2]
[392667428,1761799846709,-500.0,0.00032225,4]
[392667429,1761799846719,-500.0,0.00032499,4]
[392667430,1761799846728,-544.06005233,0.00032773,4]
[392667431,1761799846738,-859.96488407,0.00032993,2]
[392667432,1761799846747,-907.1996279,0.00033093,2]
[392667433,1761799846757,-663.372304,0.00033165,2]
[392667434,1761799846767,-174.9849729,0.000332,117]
[392667435,1761799846776,-174.98497288,0.000332,117]
[392667436,1761799846785,-531.05270031,0.00033412,120]
[392667437,1761799846794,-859.96488405,0.00033552,2]
[392667438,1761799846804,-174.98497288,0.00033623,118]
[392667439,1761799846813,-500.0,0.00033796,7]
[392667440,1761799846822,-151.0,0.00033891,7]
[392667441,1761799846832,-823.0,0.0003394,2]
[392667442,1761799846841,-466.26092942,0.00034011,120]
[392667443,1761799846851,-200.0,0.00034011,30]
[392667444,1761799846860,-203.76845865,0.00034093,4]
[392667445,1761799846870,-859.96488405,0.00034112,2]
[392667446,1761799846879,-202.4235982,0.00034355,2]
[392667447,1761799846888,-151.0,0.00034618,30]
[392667448,1761799846898,-859.96488405,0.00034671,2]
[392667449,1761799846907,-859.96488405,0.0003523,2]
[392667450,1761799846916,-1337.25314603,0.0003523,2]
[392667451,1761799846926,-8862.47583994,0.0003523,2]
[392667452,1761799846936,-590.97336893,0.0003531,3]
[392667453,1761799846945,-8864.60053395,0.0003532,3]
[392667454,1761799846955,-192.17,0.0003532,10]
[392667455,1761799846965,-329.07,0.0003532,10]
[392667456,1761799846974,-274.23,0.0003532,10]
[392667457,1761799846983,-228.52,0.0003532,10]
[392667458,1761799846992,-1483.72998534,0.0003533,2]
[392667459,1761799847007,-2138.019511,0.0003533,2]
[392667460,1761799847019,-4155.27195149,0.0003533,2]
[392667461,1761799847040,-7501.40466771,0.0003533,2]
[392667462,1761799847051,-1000.0,0.0003533,2]
[392667463,1761799847062,-1533.78185648,0.0003533,2]
[392667464,1761799847189,-167.25389096,0.0003533,2]
[392667465,1761799847201,-16128.65349425,0.0003533,2]
[392667466,1761799847212,-2085.26905335,0.0003533,2]
[392667467,1761799894395,305.4286227,0.000253,2]
[392667468,1761799994854,457.14134182,0.000224,2]
[392667469,1761799994881,2542.85865818,0.000224,2]
[392667470,1761799995427,3000.0,0.0002241,2]
[392667471,1761799995975,3000.0,0.0002242,2]
[392667472,1761799996548,1457.15134182,0.0002243,2]
[392667473,1761799996571,1542.84865818,0.0002243,2]
[392667474,1761799997156,3000.0,0.0002244,2]
[392667475,1761799997816,3358.731315,0.0002245,2]
[392667480,1761800327264,292.259166,0.00030136,120]
[392667481,1761800404095,500.0,0.00025205,2]
[392667482,1761800404453,500.0,0.00025205,2]
[392667483,1761800404861,500.0,0.00025205,2]
[392667484,1761800405246,500.0,0.00025205,2]
[392667485,1761800405668,98.43002682,0.00025205,2]
[392667486,1761800405692,401.56997318,0.00025205,2]
[392667493,1761800702383,3944.58008578,0.00025205,2]
[392667496,1761800833130,-266.76135644,0.00025376,2]
[392667497,1761800833152,-127.49103183,0.00025547,2]
[392667499,1761800848269,-72.50896817,0.00025547,2]
[392667500,1761800848292,-403.80339554,0.00026991,2]
[392667501,1761800848310,-981.35,0.00027,2]
[392667502,1761800848331,-314.7784006,0.00027376,2]
[392667503,1761800848350,-362.79544475,0.00029376,2]
[392667504,1761800848370,-412.0,0.0003006,2]
[392667505,1761800848390,-153.0,0.00030431,2]
[392667506,1761800848409,-153.0,0.00030437,2]
[392667507,1761800848427,-153.0,0.00030443,2]
[392667508,1761800848446,-2436.30981022,0.00030815,2]
[392667509,1761800848466,-1161.01598323,0.0003086,2]
[392667510,1761800848485,-556.2390309,0.0003086,2]
[392667511,1761800848504,-400.0,0.00030861,2]
[392667512,1761800848524,-1000.0,0.00030862,30]
[392667513,1761800848544,-410.81248891,0.00031376,2]
[392667514,1761800848562,-3293.43084109,0.00031824,2]
[392667558,1761801032314,-918.41214094,0.00031665,28]
[392667559,1761801032324,-1232.81914229,0.00031824,2]
[392667560,1761801032336,-308.09929999,0.00031824,2]
[392667561,1761801032372,-2314.46863803,0.00031824,2]
[392667563,1761801032382,-412.0,0.0003306,2]
[392667564,1761801032391,-174.98497288,0.000332,117]
[392667565,1761801032401,-458.82953307,0.00033376,120]
[392667566,1761801032411,-500.0,0.00033796,7]
[392667567,1761801032420,-324.064311,0.00034012,7]
[392667568,1761801032431,-200.0,0.00034012,30]
[392667569,1761801032442,-400.6115832,0.00034767,30]
[392667570,1761801032451,-393.6741494,0.00034767,30]
[392667572,1761801032461,-6636.30014951,0.00034771,2]
[392667573,1761801032471,-157.409416,0.00034771,10]
[392667574,1761801032480,-500.0,0.00034988,4]
[392667575,1761801032490,-400.78717206,0.00034988,4]
[392667576,1761801032499,-1250.0,0.00034997,4]
[392667577,1761801032509,-356.863,0.00034998,40]
[392667578,1761801032519,-207.35568639,0.00034998,7]
[392667579,1761801032528,-200.0,0.00034998,4]
[392667580,1761801032538,-10043.0,0.00035,7]
[392667581,1761801032547,-2002.1513573,0.00035,120]
[392667582,1761801032555,-5908.31722662,0.00035172,2]
[392667583,1761801032565,-428.97789886,0.00035172,2]
[392667584,1761801032575,-151.0,0.00035209,2]
[392667585,1761801032584,-151.0,0.00035209,2]
[392667586,1761801032595,-151.0,0.00035209,2]
[392667587,1761801032604,-151.0,0.00035209,2]
[392667588,1761801032614,-151.0,0.00035209,2]
[392667589,1761801032624,-151.0,0.00035209,2]
[392667590,1761801032633,-151.0,0.00035209,2]
[392667591,1761801032643,-151.0,0.00035209,2]
[392667592,1761801032652,-151.0,0.00035209,2]
[392667593,1761801032664,-151.0,0.00035209,2]
[392667594,1761801032673,-151.0,0.00035209,2]
[392667595,1761801032683,-151.0,0.00035209,2]
[392667596,1761801032693,-151.0,0.00035209,2]
[392667597,1761801032703,-151.0,0.00035209,2]
[392667598,1761801032712,-151.0,0.00035209,2]
[392667599,1761801032722,-151.0,0.00035209,2]
[392667600,1761801032731,-151.0,0.00035209,2]
[392667601,1761801032739,-151.0,0.00035209,2]
[392667602,1761801032749,-151.0,0.00035209,2]
[392667603,1761801032758,-151.0,0.00035209,2]
[392667604,1761801032768,-859.5976276,0.0003522,2]
[392667605,1761801032777,-533.48,0.0003522,10]
[392667606,1761801032787,-444.57,0.0003522,10]
[392667607,1761801032796,-444.57,0.0003522,10]
[392667608,1761801032806,-523.66091102,0.00035227,7]
[392667609,1761801032815,-500.0,0.00035227,7]
[392667610,1761801032824,-500.0,0.00035227,7]
[392667611,1761801032834,-296.49510222,0.00035227,2]
[392667612,1761801032843,-500.0,0.00035227,7]
[392667613,1761801032852,-500.0,0.00035227,7]
[392667614,1761801032861,-500.0,0.00035227,7]
[392667615,1761801032870,-500.0,0.00035227,7]
[392667616,1761801032879,-196.88318589,0.00035227,7]
[392667617,1761801032888,-378.88045253,0.00035227,7]
[392667618,1761801032898,-500.0,0.00035227,7]
[392667619,1761801032907,-500.0,0.00035229,7]
[392667620,1761801032917,-394.60639991,0.00035229,7]
[392667621,1761801032926,-500.0,0.00035229,7]
[392667622,1761801032937,-500.0,0.00035229,7]
[392667623,1761801032947,-375.14798674,0.00035229,7]
[392667624,1761801032956,-685000.0,0.0003523,2]
[392667625,1761801032965,-1250.0,0.00035271,4]
[392667626,1761801032974,-500.0,0.0003533,30]
[392667627,1761801032984,-506.84657723,0.00035376,120]
[392667628,1761801032993,-160.0,0.00035385,3]
[392667629,1761801033003,-160.0,0.00035385,5]
[392667630,1761801033013,-157.409416,0.000354,10]
[392667631,1761801033024,-322.34911035,0.0003543,3]
[392667632,1761801033034,-414336.82636849,0.0003544,30]
[392667633,1761801033044,-500.0,0.0003544,7]
[392667634,1761801033054,-157.409416,0.0003544,30]
[392667635,1761801033063,-478711.47235163,0.00035444,7]
[392667661,1761801038351,-239.65840262,0.0002589,2]
[392667662,1761801038361,-282.7969151,0.0002789,2]
[392667663,1761801038370,-325.93542757,0.0002989,2]
[392667664,1761801038379,-369.07394004,0.0003189,2]
[392667665,1761801038389,-412.21245251,0.0003389,120]
[392667666,1761801038398,-11903.1427183,0.00035444,7]
[392667667,1761801038409,-735.61136778,0.00035444,7]
[392667668,1761801038421,-6466.53182472,0.00035444,7]
[392667691,1761801040504,-1000.0,0.00035444,7]
[392667741,1761801043722,-188.54257621,0.00035219,7]
[392667742,1761801043733,-464.32602988,0.00035219,7]
[392667743,1761801043742,-186.57139391,0.00035434,10]
[392667754,1761801046476,-2662.26723179,0.00035444,7]
[392667791,1761801289947,1414.77,0.00025205,2]
[392667794,1761801872580,4239.08994104,0.00025205,2]
[392667795,1761801872603,5760.91005896,0.00025205,2]
[392667796,1761801884613,4239.09994104,0.00025205,2]
[392667797,1761801884637,5760.90005896,0.00025205,2]
[392667798,1761801899580,4239.10994104,0.00025205,2]
[392667799,1761801899602,5760.89005896,0.00025205,2]
[392667800,1761801901240,1248.49439306,0.00025205,2]
[392667801,1761801909349,204.83,0.00025205,2]
[392667805,1761801917520,546.53469965,0.00025205,2]
[392667806,1761801918090,2239.26084833,0.00025205,2]
[392667807,1761801918113,7760.73915167,0.00025205,2]
[392667811,1761801927572,2239.27084833,0.000195,3]
[392667812,1761801927595,10000.01,0.000195,3]
[392667813,1761801927619,10000.01,0.000195,3]
[392667814,1761801927642,760.70915167,0.000195,3]
[392667816,1761801936236,6048.0,0.00025205,2]
[392667822,1761801959126,-205.87556025,0.00025547,2]
[392667823,1761801959149,-242.9331611,0.00027547,2]
[392667824,1761801959172,-279.99076195,0.00029547,2]
[392667825,1761801959197,-180.00565285,0.00030141,120]
[392667826,1761801959219,-157.43403212,0.00031062,2]
[392667827,1761802028073,-204.48091348,0.0002589,2]
[392667828,1761802028094,-241.2874779,0.0002789,2]
[392667829,1761802028114,-278.09404233,0.0002989,2]
[392667830,1761802028134,-254.56596788,0.00031062,2]
[392667831,1761802028156,-249.0,0.00031433,2]
[392667832,1761802028177,-253.0,0.00031453,2]
[392667833,1761802028199,-1466.0771861,0.0003167,2]
[392667834,1761802028220,-400.0,0.00031672,2]
[392667835,1761802028240,-6012.13413974,0.00031673,2]
[392667836,1761802052106,-1170.28709013,0.00031673,2]
[392667837,1761802090364,1796.22362719,0.00021,2]
[392667840,1761802110375,4038.62412813,0.00029,120]
[392667841,1761802114034,1395.07722114,0.00024,60]
[392667842,1761802114056,332.42760387,0.00024,60]
[392667847,1761802160829,300.0,0.00024,2]
[392667848,1761802171272,300.0,0.00024,2]
[392667917,1761802232788,-9651.38711468,0.00026,30]
[392667919,1761802232798,-269.0,0.00026573,2]
[392667921,1761802232808,-300.0,0.00026573,2]
[392667923,1761802232817,-200.0,0.00026573,2]
[392667925,1761802232827,-420.0,0.00028741,2]
[392667927,1761802232839,-500.0,0.00028888,7]
[392667929,1761802232848,-500.0,0.00028889,7]
[392667931,1761802232857,-160.0,0.00029233,2]
[392667933,1761802232867,-260.0,0.00029781,2]
[392667935,1761802232876,-1000.0,0.00029999,10]
[392667937,1761802232885,-3218.50250442,0.0003,20]
[392668041,1761802234081,530.697843,0.00013699,2]
[392668051,1761802234280,530.697843,0.00020187,2]
[392668069,1761802243512,-530.697843,0.00026676,2]
[392668070,1761802243522,-500.0,0.00029999,2]
[392668071,1761802243531,-500.0,0.00029999,2]
[392668072,1761802243540,-500.0,0.00029999,2]
[392668073,1761802243549,-500.0,0.00029999,2]
[392668074,1761802243558,-500.0,0.00029999,2]
[392668075,1761802243567,-500.0,0.00029999,2]
[392668076,1761802243577,-500.0,0.00029999,2]
[392668077,1761802243587,-213.55964899,0.00029999,2]
[392668078,1761802243596,-500.0,0.00029999,2]
[392668079,1761802243605,-500.0,0.00029999,2]
[392668080,1761802243614,-500.0,0.00029999,2]
[392668081,1761802243624,-182.08724608,0.00029999,2]
[392668082,1761802243633,-500.0,0.00029999,2]
[392668083,1761802243642,-385.48161847,0.00029999,2]
[392668084,1761802243651,-500.0,0.00029999,2]
[392668085,1761802243660,-429.2736435,0.00029999,2]
[392668086,1761802243672,-70.7263565,0.00029999,2]
[392668087,1761802243681,-500.0,0.00029999,2]
[392668088,1761802243690,-500.0,0.00029999,2]
[392668089,1761802243699,-500.0,0.00029999,2]
[392668090,1761802243709,-600.0,0.00029999,2]
[392668091,1761802243718,-500.0,0.00029999,2]
[392668092,1761802243727,-500.0,0.00029999,2]
[392668093,1761802243736,-500.0,0.00029999,2]
[392668094,1761802243745,-500.0,0.00029999,2]
[392668095,1761802243754,-500.0,0.00029999,2]
[392668096,1761802243764,-500.0,0.00029999,2]
[392668097,1761802243775,-500.0,0.00029999,2]
[392668098,1761802243785,-500.0,0.00029999,2]
[392668099,1761802243794,-300.0,0.00029999,2]
[392668100,1761802243803,-500.0,0.00029999,2]
[392668101,1761802243811,-500.0,0.00029999,2]
[392668102,1761802243821,-372.90167786,0.00029999,2]
[392668103,1761802243829,-500.0,0.00029999,2]
[392668104,1761802243838,-500.0,0.00029999,2]
[392668105,1761802243848,-500.0,0.00029999,2]
[392668106,1761802243857,-500.0,0.00029999,2]
[392668107,1761802243866,-500.0,0.00029999,2]
[392668108,1761802243875,-500.0,0.00029999,2]
[392668109,1761802243885,-74.37196564,0.00029999,2]
[392668111,1761802246923,-425.62803436,0.00029999,2]
[392668112,1761802246932,-500.0,0.00029999,2]
[392668113,1761802246942,-500.0,0.00029999,2]
[392668114,1761802246951,-500.0,0.00029999,2]
[392668115,1761802246960,-255.37196564,0.00029999,2]
[392668116,1761802246983,-140.46479653,0.00029999,2]
[392668117,1761802246993,-272.3160958,0.00029999,2]
[392668139,1761802482905,1000.0,0.00030136,120]
[392668146,1761803236138,-208.47050075,0.00025376,2]
[392668147,1761803236159,-169.82355301,0.00025863,5]
[392668148,1761803236181,-245.99519088,0.00027376,2]
[392668149,1761803236202,-403.80339554,0.00027803,2]
[392668150,1761803236223,-1147.571634,0.00027808,2]
[392668151,1761803236244,-44.91543354,0.00027819,15]
[392668152,1761803240132,-155.08456646,0.00027819,15]
[392668153,1761803240153,-22.00214796,0.00028219,2]
[392668155,1761803368097,-163.90881314,0.0002589,2]
[392668156,1761803389407,163.02105022,0.000301,120]
[392668197,1761803431717,-36.71609737,0.0002589,2]
[392668199,1761803431727,-168.90696768,0.00027487,5]
[392668201,1761803431741,-236.7373944,0.0002789,2]
[392668203,1761803431754,-148.75498504,0.00028219,2]
[392668205,1761803431763,-272.84987829,0.0002989,2]
[392668207,1761803431772,-519.30553011,0.00029924,2]
[392668209,1761803431783,-292.92771645,0.00029924,2]
[392668212,1761803431799,-387.76675344,0.00029924,2]
[392668214,1761803431808,-300.0,0.00029925,2]
[392668216,1761803431817,-300.0,0.00029925,2]
[392668218,1761803431827,-300.0,0.00029925,2]
[392668220,1761803431836,-300.0,0.00029925,2]
[392668222,1761803431846,-300.0,0.00029925,2]
[392668224,1761803431855,-1200.0,0.00029926,2]
[392668226,1761803431865,-238.44074568,0.00029927,2]
[392668228,1761803431876,-9835.14622297,0.00029927,2]
[392668230,1761803431885,-500.0,0.00029929,4]
[392668232,1761803431895,-505.53,0.00029929,4]
[392668234,1761803431905,-502.78871998,0.00029929,4]
[392668236,1761803431915,-1145.83,0.00029929,4]
[392668238,1761803431926,-500.0,0.00029929,4]
[392668240,1761803431937,-3199.7096564,0.0002993,2]
[392668242,1761803431947,-500.0,0.00029973,5]
[392668244,1761803431958,-500.0,0.00029973,5]
[392668247,1761803431968,-504.28255434,0.00029973,5]
[392668249,1761803431977,-151.0,0.00029974,2]
[392668251,1761803431986,-151.0,0.00029974,2]
[392668253,1761803431996,-151.0,0.00029974,2]
[392668255,1761803432005,-151.0,0.00029974,2]
[392668257,1761803432014,-151.0,0.00029974,2]
[392668259,1761803432024,-151.0,0.00029974,2]
[392668261,1761803432032,-151.0,0.00029974,2]
[392668263,1761803432042,-151.0,0.00029974,2]
[392668265,1761803432051,-151.0,0.00029974,2]
[392668267,1761803432060,-151.0,0.00029974,2]
[392668269,1761803432070,-151.0,0.00029974,2]
[392668271,1761803432079,-151.0,0.00029974,2]
[392668273,1761803432088,-151.0,0.00029974,2]
[392668286,1761803432221,-151.0,0.00029974,2]
[392668288,1761803432235,-151.0,0.00029974,2]
[392668290,1761803432245,-151.0,0.00029974,2]
[392668293,1761803432255,-151.0,0.00029974,2]
[392668295,1761803432265,-151.0,0.00029974,2]
[392668297,1761803432275,-151.0,0.00029974,2]
[392668299,1761803432285,-151.0,0.00029974,2]
[392668301,1761803432294,-500.0,0.00029978,3]
[392668303,1761803432304,-485.87796421,0.0002999,2]
[392668305,1761803432314,-500.0,0.0002999,2]
[392668307,1761803432324,-200.0,0.0002999,2]
[392668309,1761803432333,-500.0,0.0002999,2]
[392668311,1761803432342,-500.0,0.0002999,2]
[392668313,1761803432352,-500.0,0.0002999,2]
[392668315,1761803432361,-500.0,0.0002999,2]
[392668317,1761803432371,-500.0,0.0002999,2]
[392668319,1761803432379,-500.0,0.0002999,2]
[392668321,1761803432389,-510.2594106,0.0002999,2]
[392668323,1761803432398,-500.0,0.0002999,2]
[392668325,1761803432407,-500.0,0.0002999,2]
[392668327,1761803432416,-500.0,0.0002999,2]
[392668329,1761803432425,-500.0,0.0002999,2]
[392668331,1761803432434,-500.0,0.0002999,2]
[392668333,1761803432443,-571.02934616,0.0002999,2]
[392668334,1761803432452,-500.0,0.0002999,2]
[392668336,1761803432461,-500.0,0.0002999,2]
[392668338,1761803432471,-500.0,0.0002999,2]
[392668340,1761803432480,-500.0,0.0002999,2]
[392668342,1761803432489,-500.0,0.0002999,2]
[392668344,1761803432498,-500.0,0.0002999,2]
[392668346,1761803432510,-500.0,0.0002999,2]